fUST/lending_fUST_20250725
["ID","MTS","AMOUNT","RATE_DAILY","PERIOD"]
[374618780,1753381838463,-499.14,0.00019628,2]
[374618781,1753381838474,-460.0,0.00019628,2]
[374618782,1753381838487,-460.0,0.00019629,2]
[374618783,1753381838500,-460.0,0.00019629,2]
[374618784,1753381838510,-460.0,0.00019629,2]
[374618785,1753381838520,-460.0,0.00019629,2]
[374618786,1753381838530,-460.0,0.00019629,2]
[374618787,1753381838539,-847.74,0.00019629,2]
[374618788,1753381838549,-896.72,0.00019629,2]
[374618789,1753381838559,-320.01537501,0.00019629,2]
[374618790,1753381838568,-460.0,0.00019629,2]
[374618791,1753381838577,-460.0,0.00019629,2]
[374618792,1753381838587,-460.0,0.00019629,2]
[374618793,1753381838598,-460.0,0.00019629,2]
[374618794,1753381838608,-460.0,0.00019629,2]
[374618795,1753381838618,-732.51,0.00019629,2]
[374618796,1753381838627,-460.0,0.00019629,2]
[374618797,1753381838638,-460.0,0.00019629,2]
[374618798,1753381838647,-460.0,0.00019629,2]
[374618799,1753381838657,-460.0,0.00019629,2]
[374618800,1753381838667,-460.0,0.00019629,2]
[374618801,1753381838677,-464.56500163,0.00019629,2]
[374618802,1753381838687,-460.0,0.00019629,2]
[374618803,1753381838696,-460.0,0.00019629,2]
[374618804,1753381838707,-460.0,0.00019629,2]
[374618805,1753381838716,-460.0,0.00019629,2]
[374618806,1753381838726,-460.0,0.00019629,2]
[374618807,1753381838736,-460.0,0.00019629,2]
[374618808,1753381838745,-460.0,0.00019629,2]
[374618809,1753381838755,-460.0,0.00019629,2]
[374618810,1753381838765,-460.0,0.00019629,2]
[374618811,1753381838774,-460.0,0.00019629,2]
[374618812,1753381838784,-460.0,0.00019629,2]
[374618813,1753381838793,-460.0,0.00019629,2]
[374618814,1753381838803,-460.0,0.00019629,2]
[374618815,1753381838812,-460.0,0.00019629,2]
[374618816,1753381838822,-3010.21,0.00019629,2]
[374618817,1753381838832,-553.37,0.00019629,2]
[374618818,1753381838841,-735.37,0.00019629,2]
[374618819,1753381838851,-460.0,0.00019629,2]
[374618820,1753381838862,-460.0,0.00019629,2]
[374618821,1753381838873,-460.0,0.00019629,2]
[374618822,1753381838883,-1099.84,0.00019629,2]
[374618823,1753381838892,-460.0,0.00019629,2]
[374618824,1753381838903,-460.0,0.00019629,2]
[374618825,1753381838914,-460.0,0.00019629,2]
[374618826,1753381838924,-460.0,0.00019629,2]
[374618827,1753381838934,-460.0,0.00019629,2]
[374618828,1753381838949,-460.0,0.0001963,2]
[374618829,1753381838959,-460.0,0.0001963,2]
[374618830,1753381838969,-460.0,0.0001963,2]
[374618831,1753381838980,-460.0,0.0001963,2]
[374618832,1753381838990,-252.02476564,0.0001963,2]
[374618833,1753381838999,-508.8119735,0.0001963,2]
[374618834,1753381839009,-460.0,0.0001963,2]
[374618835,1753381839018,-460.0,0.0001963,2]
[374618836,1753381839027,-461.36909898,0.0001963,2]
[374618837,1753381839037,-460.0,0.0001963,2]
[374618838,1753381839047,-460.0,0.0001963,2]
[374618839,1753381839056,-460.0,0.0001963,2]
[374618840,1753381839066,-460.0,0.0001963,2]
[374618841,1753381839077,-460.0,0.0001963,2]
[374618842,1753381839086,-362.89812163,0.0001963,2]
[374618843,1753381839239,-460.0,0.0001963,2]
[374618844,1753381839249,-1050.8,0.0001963,2]
[374618845,1753381839259,-471.32902609,0.0001963,2]
[374618846,1753381839268,-460.0,0.0001963,2]
[374618847,1753381839278,-460.0,0.0001963,2]
[374618848,1753381839287,-460.0,0.0001963,2]
[374618849,1753381839298,-460.0,0.0001963,2]
[374618850,1753381839307,-460.0,0.0001963,2]
[374618851,1753381839318,-460.0,0.0001963,2]
[374618852,1753381839327,-460.0,0.0001963,2]
[374618853,1753381839339,-460.0,0.0001963,2]
[374618854,1753381839350,-470.74067896,0.0001963,2]
[374618855,1753381839361,-460.0,0.0001963,2]
[374618856,1753381839370,-460.0,0.0001963,2]
[374618857,1753381839381,-460.0,0.0001963,2]
[374618858,1753381839393,-460.0,0.0001963,2]
[374618859,1753381839402,-239.84,0.0001963,2]
[374618860,1753381839413,-460.0,0.0001963,2]
[374618861,1753381839424,-460.0,0.0001963,2]
[374618862,1753381839436,-460.0,0.0001963,2]
[374618863,1753381839448,-460.0,0.0001963,2]
[374618864,1753381839460,-460.0,0.0001963,2]
[374618865,1753381839470,-460.0,0.0001963,2]
[374618866,1753381839480,-460.0,0.0001963,2]
[374618867,1753381839490,-460.0,0.0001963,2]
[374618868,1753381839500,-460.0,0.0001963,2]
[374618869,1753381839511,-460.0,0.0001963,2]
[374618870,1753381839521,-460.0,0.0001963,2]
[374618871,1753381839530,-460.0,0.0001963,2]
[374618872,1753381839541,-460.0,0.0001963,2]
[374618873,1753381839550,-460.0,0.0001963,2]
[374618874,1753381839560,-460.0,0.0001963,2]
[374618875,1753381839570,-460.0,0.0001963,2]
[374618876,1753381839580,-460.0,0.0001963,2]
[374618877,1753381839590,-460.0,0.0001963,2]
[374618878,1753381839600,-460.0,0.0001963,2]
[374618879,1753381839610,-460.0,0.0001963,2]
[374618880,1753381839620,-460.0,0.0001963,2]
[374618881,1753381839629,-460.0,0.0001963,2]
[374618882,1753381839639,-460.0,0.0001963,2]
[374618883,1753381839648,-460.0,0.0001963,2]
[374618884,1753381839658,-460.0,0.0001963,2]
[374618885,1753381839668,-460.0,0.0001963,2]
[374618886,1753381839677,-460.0,0.0001963,2]
[374618887,1753381839687,-1505.96,0.0001963,2]
[374618888,1753381839697,-801.22,0.0001963,2]
[374618889,1753381839707,-562.98,0.0001963,2]
[374618891,1753381839716,-460.0,0.0001963,2]
[374618893,1753381839725,-1614.44,0.0001963,2]
[374618895,1753381839737,-654.15,0.0001963,2]
[374618896,1753381839746,-551.36195586,0.0001963,2]
[374618897,1753381839755,-460.0,0.0001963,2]
[374618898,1753381839765,-460.0,0.0001963,2]
[374618900,1753381839774,-460.0,0.0001963,2]
[374618902,1753381839783,-460.0,0.0001963,2]
[374618904,1753381839792,-460.0,0.0001963,2]
[374618906,1753381839802,-997.52,0.0001963,2]
[374618908,1753381839812,-460.0,0.0001963,2]
[374618909,1753381839821,-460.0,0.0001963,2]
[374618911,1753381839831,-460.0,0.0001963,2]
[374618913,1753381839840,-341.06620171,0.0001963,2]
[374618915,1753381839850,-460.0,0.0001963,2]
[374618917,1753381839862,-460.0,0.0001963,2]
[374618919,1753381839872,-460.0,0.0001963,2]
[374618921,1753381839881,-460.0,0.0001963,2]
[374618922,1753381839891,-460.0,0.0001963,2]
[374618925,1753381839901,-460.0,0.0001963,2]
[374618927,1753381839912,-460.0,0.0001963,2]
[374618929,1753381839922,-460.0,0.0001963,2]
[374618930,1753381839931,-460.0,0.0001963,2]
[374618933,1753381839943,-325.6762371,0.0001963,2]
[374618934,1753381839953,-460.0,0.0001963,2]
[374618936,1753381839963,-460.0,0.0001963,2]
[374618938,1753381839972,-468.73905628,0.0001963,2]
[374618940,1753381839982,-460.0,0.0001963,2]
[374618942,1753381839991,-460.0,0.0001963,2]
[374618944,1753381840001,-581.789639,0.00019631,2]
[374618946,1753381840010,-460.0,0.00019631,2]
[374618948,1753381840019,-282.02709983,0.00019631,2]
[374618950,1753381840029,-460.0,0.00019631,2]
[374618952,1753381840038,-460.0,0.00019631,2]
[374618954,1753381840048,-583.45920605,0.00019631,2]
[374618956,1753381840057,-460.0,0.00019631,2]
[374618958,1753381840067,-460.0,0.00019631,2]
[374618960,1753381840077,-460.0,0.00019631,2]
[374618962,1753381840087,-485.73859243,0.00019631,2]
[374618964,1753381840098,-460.0,0.00019631,2]
[374618966,1753381840107,-460.0,0.00019631,2]
[374618968,1753381840117,-460.0,0.00019631,2]
[374618970,1753381840127,-460.0,0.00019631,2]
[374618972,1753381840136,-460.0,0.00019631,2]
[374618974,1753381840145,-460.0,0.00019631,2]
[374618976,1753381840155,-460.0,0.00019631,2]
[374618978,1753381840164,-460.0,0.00019631,2]
[374618980,1753381840174,-460.0,0.00019631,2]
[374618982,1753381840183,-460.73762383,0.00019631,2]
[374618984,1753381840193,-460.0,0.00019631,2]
[374618986,1753381840202,-460.0,0.00019631,2]
[374618988,1753381840211,-457.29574229,0.00019631,2]
[374618990,1753381840222,-460.0,0.00019631,2]
[374618992,1753381840232,-460.0,0.00019631,2]
[374618994,1753381840242,-460.0,0.00019631,2]
[374618996,1753381840251,-460.0,0.00019631,2]
[374618998,1753381840261,-460.0,0.00019631,2]
[374619000,1753381840271,-460.0,0.00019631,2]
[374619002,1753381840281,-460.0,0.00019631,2]
[374619004,1753381840290,-460.0,0.00019631,2]
[374619006,1753381840301,-460.0,0.00019631,2]
[374619008,1753381840310,-461.75750865,0.00019631,2]
[374619010,1753381840320,-460.0,0.00019631,2]
[374619012,1753381840331,-460.0,0.00019631,2]
[374619014,1753381840341,-460.0,0.00019631,2]
[374619016,1753381840350,-460.0,0.00019631,2]
[374619018,1753381840359,-388.23982907,0.00019631,2]
[374619020,1753381840369,-461.3476032,0.00019631,2]
[374619022,1753381840378,-460.0,0.00019631,2]
[374619024,1753381840388,-460.0,0.00019631,2]
[374619026,1753381840397,-460.0,0.00019631,2]
[374619028,1753381840407,-460.0,0.00019631,2]
[374619030,1753381840416,-460.0,0.00019631,2]
[374619032,1753381840426,-460.0,0.00019631,2]
[374619034,1753381840435,-489.0,0.00019631,2]
[374619036,1753381840445,-460.0,0.00019631,2]
[374619038,1753381840455,-460.0,0.00019631,2]
[374619040,1753381840465,-460.0,0.00019631,2]
[374619042,1753381840474,-460.0,0.00019631,2]
[374619044,1753381840486,-460.0,0.00019631,2]
[374619046,1753381840496,-446.56643104,0.00019631,2]
[374619048,1753381840506,-460.0,0.00019631,2]
[374619050,1753381840515,-460.0,0.00019631,2]
[374619052,1753381840524,-460.0,0.00019631,2]
[374619054,1753381840534,-580.0,0.00019631,2]
[374619056,1753381840544,-460.0,0.00019631,2]
[374619058,1753381840554,-290.70041192,0.00019631,2]
[374619060,1753381840564,-287.50273417,0.00019631,2]
[374619062,1753381840573,-460.0,0.00019631,2]
[374619064,1753381840583,-460.0,0.00019631,2]
[374619066,1753381840592,-295.87952164,0.00019631,2]
[374619067,1753381840601,-460.0,0.00019631,2]
[374619068,1753381840611,-460.0,0.00019631,2]
[374619069,1753381840621,-460.0,0.00019631,2]
[374619071,1753381840631,-460.0,0.00019631,2]
[374619073,1753381840640,-460.0,0.00019631,2]
[374619075,1753381840650,-460.0,0.00019631,2]
[374619077,1753381840659,-460.0,0.00019631,2]
[374619078,1753381840669,-460.0,0.00019631,2]
[374619080,1753381840678,-460.0,0.00019631,2]
[374619081,1753381840687,-460.0,0.00019631,2]
[374619082,1753381840697,-460.0,0.00019631,2]
[374619083,1753381840707,-460.0,0.00019631,2]
[374619084,1753381840716,-460.0,0.00019631,2]
[374619085,1753381840726,-460.0,0.00019631,2]
[374619086,1753381840738,-460.0,0.00019631,2]
[374619087,1753381840747,-460.0,0.00019631,2]
[374619088,1753381840756,-460.0,0.00019631,2]
[374619089,1753381840767,-460.0,0.00019631,2]
[374619090,1753381840780,-460.0,0.00019631,2]
[374619091,1753381840790,-460.0,0.00019632,2]
[374619092,1753381840799,-460.0,0.00019632,2]
[374619093,1753381840809,-460.0,0.00019632,2]
[374619094,1753381840818,-518.61029118,0.00019632,2]
[374619095,1753381840828,-460.0,0.00019632,2]
[374619096,1753381840838,-460.0,0.00019632,2]
[374619097,1753381840847,-460.0,0.00019633,2]
[374619098,1753381840857,-460.0,0.00019633,2]
[374619099,1753381840871,-460.0,0.00019633,2]
[374619100,1753381840880,-460.0,0.00019633,2]
[374619101,1753381840890,-460.93725366,0.00019633,2]
[374619102,1753381840901,-460.0,0.00019633,2]
[374619103,1753381840911,-460.0,0.00019633,2]
[374619104,1753381840920,-460.0,0.00019633,2]
[374619105,1753381840930,-369.04484762,0.00019633,2]
[374619106,1753381840941,-460.0,0.00019634,2]
[374619107,1753381840951,-679.3,0.00019634,2]
[374619108,1753381840960,-460.0,0.00019634,2]
[374619109,1753381840969,-255.0,0.0001971,2]
[374619110,1753381840978,-193.58763689,0.00019715,2]
[374619111,1753381840988,-159.67,0.0001989,3]
[374619112,1753381840997,-3789.64613717,0.000199,2]
[374619113,1753381841006,-460.0,0.00019901,2]
[374619114,1753381841016,-2643.77,0.00019901,2]
[374619115,1753381841026,-538.12115783,0.00019901,2]
[374619116,1753381841035,-460.0,0.00019901,2]
[374619117,1753381841044,-796.07,0.00019901,2]
[374619118,1753381841054,-425.50805841,0.00019902,2]
[374619119,1753381841063,-441.73161477,0.00019902,2]
[374619120,1753381841072,-460.0,0.00019902,2]
[374619121,1753381841082,-460.0,0.00019902,2]
[374619122,1753381841091,-1006.4,0.00019902,2]
[374619123,1753381841100,-1560.18,0.00019902,2]
[374619124,1753381841110,-460.0,0.00019902,2]
[374619125,1753381841119,-460.0,0.00019902,2]
[374619126,1753381841128,-460.0,0.00019902,2]
[374619127,1753381841138,-460.0,0.00019903,2]
[374619128,1753381841147,-460.0,0.00019903,2]
[374619129,1753381841158,-847.74,0.00019903,2]
[374619130,1753381841167,-896.72,0.00019903,2]
[374619131,1753381841177,-460.0,0.00019903,2]
[374619132,1753381841186,-460.0,0.00019903,2]
[374619133,1753381841208,-732.51,0.00019903,2]
[374619134,1753381841218,-460.0,0.00019903,2]
[374619135,1753381841227,-460.0,0.00019903,2]
[374619136,1753381841238,-460.0,0.00019903,2]
[374619137,1753381841248,-460.0,0.00019903,2]
[374619138,1753381841258,-460.0,0.00019903,2]
[374619139,1753381841269,-460.0,0.00019903,2]
[374619140,1753381841278,-460.0,0.00019903,2]
[374619141,1753381841288,-460.0,0.00019903,2]
[374619142,1753381841298,-460.0,0.00019903,2]
[374619143,1753381841307,-460.0,0.00019903,2]
[374619144,1753381841317,-3010.21,0.00019903,2]
[374619145,1753381841327,-553.37,0.00019903,2]
[374619146,1753381841337,-735.37,0.00019903,2]
[374619147,1753381841346,-460.0,0.00019903,2]
[374619148,1753381841356,-460.0,0.00019903,2]
[374619149,1753381841366,-1099.84,0.00019903,2]
[374619150,1753381841375,-460.0,0.00019903,2]
[374619151,1753381841386,-460.0,0.00019903,2]
[374619152,1753381841395,-460.0,0.00019904,2]
[374619153,1753381841405,-460.0,0.00019904,2]
[374619154,1753381841415,-460.0,0.00019904,2]
[374619155,1753381841425,-1050.8,0.00019904,2]
[374619156,1753381841434,-460.0,0.00019904,2]
[374619157,1753381841444,-460.0,0.00019904,2]
[374619158,1753381841454,-460.0,0.00019904,2]
[374619159,1753381841463,-460.0,0.00019904,2]
[374619160,1753381841473,-460.0,0.00019904,2]
[374619161,1753381841484,-460.0,0.00019904,2]
[374619162,1753381841494,-460.0,0.00019904,2]
[374619163,1753381841504,-460.0,0.00019904,2]
[374619164,1753381841514,-460.0,0.00019904,2]
[374619165,1753381841524,-460.0,0.00019904,2]
[374619166,1753381841534,-464.63859633,0.00019904,2]
[374619167,1753381841544,-460.0,0.00019904,2]
[374619168,1753381841554,-460.0,0.00019904,2]
[374619169,1753381841565,-460.0,0.00019904,2]
[374619170,1753381841575,-460.0,0.00019904,2]
[374619171,1753381841585,-460.0,0.00019904,2]
[374619172,1753381841596,-460.0,0.00019904,2]
[374619173,1753381841606,-460.0,0.00019904,2]
[374619174,1753381841615,-460.0,0.00019904,2]
[374619175,1753381841625,-529.41,0.00019904,2]
[374619176,1753381841635,-1505.96,0.00019904,2]
[374619177,1753381841645,-801.22,0.00019904,2]
[374619178,1753381841655,-562.98,0.00019904,2]
[374619179,1753381841665,-1614.44,0.00019904,2]
[374619180,1753381841675,-654.15,0.00019904,2]
[374619181,1753381841685,-460.0,0.00019904,2]
[374619182,1753381841695,-997.52,0.00019904,2]
[374619183,1753381841705,-460.0,0.00019904,2]
[374619184,1753381841715,-460.0,0.00019904,2]
[374619185,1753381841724,-460.0,0.00019904,2]
[374619186,1753381841734,-460.0,0.00019904,2]
[374619187,1753381841744,-205.37752916,0.00019905,2]
[374619188,1753381841754,-306.08118366,0.00019905,2]
[374619189,1753381841764,-460.0,0.00019905,2]
[374619190,1753381841774,-460.0,0.00019905,2]
[374619191,1753381841783,-460.0,0.00019905,2]
[374619192,1753381841793,-460.0,0.00019905,2]
[374619193,1753381841803,-460.0,0.00019905,2]
[374619194,1753381841813,-460.0,0.00019905,2]
[374619195,1753381841823,-460.0,0.00019905,2]
[374619196,1753381841832,-460.0,0.00019905,2]
[374619197,1753381841842,-529.95703349,0.00019905,2]
[374619198,1753381841853,-460.0,0.00019905,2]
[374619199,1753381841871,-460.0,0.00019905,2]
[374619200,1753381841891,-458.03268078,0.00019905,2]
[374619201,1753381841915,-460.0,0.00019905,2]
[374619202,1753381841936,-255.55403481,0.00019905,2]
[374619203,1753381841957,-200.40851563,0.00019905,2]
[374619204,1753381841979,-329.34514188,0.00019905,2]
[374619205,1753381842001,-460.0,0.00019905,2]
[374619206,1753381842021,-489.50767645,0.00019905,2]
[374619207,1753381842031,-460.0,0.00019905,2]
[374619208,1753381842040,-460.0,0.00019905,2]
[374619209,1753381842050,-188.85628207,0.00019905,2]
[374619210,1753381842060,-460.0,0.00019906,2]
[374619211,1753381842070,-460.0,0.00019907,2]
[374619212,1753381842080,-460.90764043,0.00019907,2]
[374619213,1753381842089,-460.0,0.00019907,2]
[374619214,1753381842099,-460.0,0.00019907,2]
[374619215,1753381842108,-460.0,0.00019907,2]
[374619216,1753381842118,-460.0,0.00019907,2]
[374619217,1753381842127,-460.0,0.00019907,2]
[374619218,1753381842137,-460.0,0.00019907,2]
[374619219,1753381842147,-464.63012165,0.00019907,2]
[374619220,1753381842157,-460.0,0.00019907,2]
[374619221,1753381842298,-679.3,0.00019908,2]
[374619222,1753381842308,-221.90957448,0.00019973,2]
[374619223,1753381842319,-500.0,0.00019973,2]
[374619224,1753381842329,-500.0,0.00019973,2]
[374619225,1753381842338,-500.0,0.00019973,2]
[374619226,1753381842348,-500.0,0.00019973,2]
[374619227,1753381842357,-3789.64613716,0.00020141,2]
[374619228,1753381842367,-460.0,0.00020175,2]
[374619229,1753381842377,-2643.77,0.00020175,2]
[374619230,1753381842386,-796.07,0.00020175,2]
[374619231,1753381842395,-314.74051871,0.00020176,2]
[374619232,1753381842405,-460.0,0.00020176,2]
[374619234,1753381842414,-1006.4,0.00020176,2]
[374619236,1753381842424,-1560.18,0.00020176,2]
[374619238,1753381842433,-460.0,0.00020176,2]
[374619239,1753381842443,-460.0,0.00020177,2]
[374619240,1753381842452,-847.74,0.00020177,2]
[374619241,1753381842461,-896.72,0.00020177,2]
[374619242,1753381842470,-558.43932771,0.00020177,2]
[374619243,1753381842481,-732.51,0.00020177,2]
[374619244,1753381842491,-460.0,0.00020177,2]
[374619245,1753381842502,-460.0,0.00020177,2]
[374619246,1753381842512,-460.0,0.00020177,2]
[374619247,1753381842522,-361.28279057,0.00020177,2]
[374619248,1753381842532,-460.0,0.00020177,2]
[374619249,1753381842542,-460.0,0.00020177,2]
[374619250,1753381842552,-460.0,0.00020177,2]
[374619251,1753381842563,-460.0,0.00020177,2]
[374619252,1753381842572,-460.0,0.00020177,2]
[374619253,1753381842581,-3010.21,0.00020177,2]
[374619254,1753381842591,-553.37,0.00020177,2]
[374619255,1753381842601,-735.37,0.00020177,2]
[374619256,1753381842610,-460.0,0.00020177,2]
[374619257,1753381842620,-460.0,0.00020177,2]
[374619258,1753381842630,-1099.84,0.00020177,2]
[374619259,1753381842639,-460.0,0.00020177,2]
[374619260,1753381842649,-460.0,0.00020177,2]
[374619261,1753381842659,-460.0,0.00020178,2]
[374619262,1753381842669,-460.0,0.00020178,2]
[374619263,1753381842678,-1050.8,0.00020178,2]
[374619264,1753381842688,-460.0,0.00020178,2]
[374619265,1753381842698,-460.0,0.00020178,2]
[374619266,1753381842707,-460.0,0.00020178,2]
[374619267,1753381842717,-460.0,0.00020178,2]
[374619269,1753381842727,-460.0,0.00020178,2]
[374619270,1753381842737,-460.0,0.00020178,2]
[374619271,1753381842746,-555.02511726,0.00020178,2]
[374619272,1753381842755,-460.0,0.00020178,2]
[374619273,1753381842765,-460.0,0.00020178,2]
[374619274,1753381842775,-460.0,0.00020178,2]
[374619275,1753381842785,-289.19,0.00020178,2]
[374619276,1753381842795,-460.0,0.00020178,2]
[374619277,1753381842804,-460.0,0.00020178,2]
[374619278,1753381842814,-460.0,0.00020178,2]
[374619279,1753381842823,-244.5,0.00020178,2]
[374619280,1753381842833,-346.61264477,0.00020178,2]
[374619281,1753381842843,-1505.96,0.00020178,2]
[374619282,1753381842852,-801.22,0.00020178,2]
[374619283,1753381842863,-562.98,0.00020178,2]
[374619284,1753381842874,-1614.44,0.00020178,2]
[374619285,1753381842884,-654.15,0.00020178,2]
[374619286,1753381842894,-498.2,0.00020178,2]
[374619287,1753381842904,-997.52,0.00020178,2]
[374619288,1753381842913,-460.0,0.00020178,2]
[374619289,1753381842922,-460.0,0.00020178,2]
[374619290,1753381842931,-460.0,0.00020178,2]
[374619291,1753381842942,-460.0,0.00020179,2]
[374619292,1753381842952,-460.0,0.00020179,2]
[374619293,1753381842961,-460.0,0.00020179,2]
[374619294,1753381842971,-460.0,0.00020179,2]
[374619295,1753381842980,-467.53853254,0.00020179,2]
[374619296,1753381842990,-460.0,0.00020179,2]
[374619297,1753381842999,-460.0,0.0002018,2]
[374619298,1753381843009,-460.0,0.00020181,2]
[374619299,1753381843020,-600.88382435,0.00020181,2]
[374619300,1753381843030,-460.0,0.00020181,2]
[374619301,1753381843039,-679.3,0.00020182,2]
[374619302,1753381843049,-166.06389,0.00020187,2]
[374619303,1753381843059,-3789.64613716,0.00020383,3]
[374619305,1753381843068,-566.15809037,0.00020449,2]
[374619306,1753381843078,-2643.77,0.00020449,2]
[374619307,1753381843088,-796.07,0.00020449,2]
[374619308,1753381843097,-493.05,0.0002045,2]
[374619309,1753381843107,-1006.4,0.0002045,2]
[374619310,1753381843117,-1560.18,0.0002045,2]
[374619311,1753381843126,-460.0,0.0002045,2]
[374619312,1753381843136,-460.0,0.00020451,2]
[374619313,1753381843145,-847.74,0.00020451,2]
[374619314,1753381843155,-896.72,0.00020451,2]
[374619315,1753381843164,-732.51,0.00020451,2]
[374619316,1753381843174,-460.0,0.00020451,2]
[374619317,1753381843183,-460.0,0.00020451,2]
[374619318,1753381843192,-460.0,0.00020451,2]
[374619320,1753381843202,-460.0,0.00020451,2]
[374619322,1753381843212,-460.0,0.00020451,2]
[374619324,1753381843221,-3010.21,0.00020451,2]
[374619326,1753381843230,-553.37,0.00020451,2]
[374619327,1753381843241,-735.37,0.00020451,2]
[374619328,1753381843250,-460.0,0.00020451,2]
[374619329,1753381843259,-1099.84,0.00020451,2]
[374619331,1753381843268,-460.0,0.00020451,2]
[374619332,1753381843277,-460.0,0.00020451,2]
[374619334,1753381843288,-460.0,0.00020452,2]
[374619337,1753381843298,-1050.8,0.00020452,2]
[374619338,1753381843308,-571.86,0.00020452,2]
[374619340,1753381843317,-460.0,0.00020452,2]
[374619342,1753381843327,-460.0,0.00020452,2]
[374619344,1753381843337,-460.0,0.00020452,2]
[374619346,1753381843346,-460.0,0.00020452,2]
[374619348,1753381843355,-460.0,0.00020452,2]
[374619350,1753381843365,-460.0,0.00020452,2]
[374619352,1753381843374,-460.0,0.00020452,2]
[374619354,1753381843384,-460.0,0.00020452,2]
[374619356,1753381843394,-1505.96,0.00020452,2]
[374619358,1753381843403,-801.22,0.00020452,2]
[374619360,1753381843412,-562.98,0.00020452,2]
[374619362,1753381843422,-1614.44,0.00020452,2]
[374619364,1753381843432,-654.15,0.00020452,2]
[374619366,1753381843443,-997.52,0.00020452,2]
[374619368,1753381843453,-460.0,0.00020452,2]
[374619370,1753381843463,-460.0,0.00020452,2]
[374619372,1753381843474,-460.0,0.00020453,2]
[374619375,1753381843488,-460.0,0.00020453,2]
[374619376,1753381843499,-440.6947472,0.00020453,2]
[374619378,1753381843510,-424.87060069,0.00020455,2]
[374619380,1753381843520,-460.0,0.00020455,2]
[374619382,1753381843530,-679.3,0.00020456,2]
[374619384,1753381843540,-547.08361476,0.00020521,2]
[374619386,1753381843551,-500.0,0.00020521,2]
[374619388,1753381843561,-840.23756827,0.00020601,2]
[374619390,1753381843571,-160.0,0.00020601,2]
[374619392,1753381843581,-160.0,0.00020601,2]
[374619394,1753381843591,-160.0,0.00020601,2]
[374619396,1753381843601,-160.0,0.00020601,2]
[374619398,1753381843610,-231.16387093,0.00020601,2]
[374619400,1753381843620,-160.0,0.00020601,2]
[374619402,1753381843634,-215.88777038,0.00020601,2]
[374619404,1753381843644,-214.7213231,0.00020601,2]
[374619406,1753381843654,-160.0,0.00020601,2]
[374619408,1753381843663,-160.0,0.00020601,2]
[374619410,1753381843673,-160.0,0.00020601,2]
[374619412,1753381843683,-12624.810388,0.00020601,2]
[374619414,1753381843694,-476.79463412,0.00020601,2]
[374619416,1753381843703,-526.24749348,0.00020601,2]
[374619418,1753381843713,-160.0,0.00020601,2]
[374619420,1753381843723,-3789.64613716,0.00020624,3]
[374619421,1753381843732,-763.86837328,0.00020627,2]
[374619423,1753381843748,-2643.77,0.00020723,2]
[374619425,1753381843757,-796.07,0.00020723,2]
[374619427,1753381843767,-1006.4,0.00020724,2]